Workbook

Sheet NSU
B1: Hanna Toivanen | E1: 16.5.2001 Varkaus
B2: SUPERPESIS | E2: Runkosarja | I2: Kärkilyönnit (KL), pesänvälit | Q2: Runkosarja | U2: Ylempi loppusarja | Z2: Alempi loppusarja | AG2: Arvo-ottelut ja mitalit
B3: Vuosi | C3: Sija | D3: Seura | E3: OTT | F3: KUN | G3: LÖI | H3: TOI | I3: KL | J3: 0 > 1 | K3: 1 > 2 | L3: 2 > 3 | M3: 3 > k | N3: KL-% | P3: LÖI | Q3: TOI | R3: L+T | S3: KL | U3: OTT | V3: KUN | W3: LÖI | X3: TOI | Y3: KL | Z3: OTT | AA3: KUN | AB3: LÖI | AC3: TOI | AD3: KL | AE3: IL | AF3: LL | AG3: Halli | AH3: K | AI3: H | AJ3: P
B4: 2017 | D4: JoMa | F4: suomensarja
B5: 2018 | D5: JoMa | F5: ykköspesis
B6: 2019 | D6: JoMa | F6: ykköspesis
B7: 2020 | C7: 9. | D7: JoMa | E7: 20 | F7: 1 | G7: 15 | H7: 5 | I7: 53 | J7: 7 | K7: 11 | L7: 19 | M7: 16 | N7: 39.8 % | O7: 133
B8: 2021 | C8: 9. | D8: JoMa | E8: 20 | F8: 2 | G8: 34 | H8: 4 | I8: 75 | J8: 2 | K8: 12 | L8: 25 | M8: 36 | N8: 48.4 % | O8: 155
B9: 2022 | C9: 9. | D9: JoMa | E9: 24 | F9: 1 | G9: 31 | H9: 3 | I9: 53 | J9: 1 | K9: 2 | L9: 18 | M9: 32 | N9: 35.6 % | O9: 149
B10: 2023 | C10: 6. | D10: JoMa | E10: 23 | F10: 2 | G10: 27 | H10: 3 | I10: 53 | J10: 1 | K10: 6 | L10: 17 | M10: 29 | N10: 41.1 % | O10: 129 | U10: 5 | V10: 0 | W10: 6 | X10: 0 | Y10: 10
B11: 2024 | C11: 6. | D11: JoMa | E11: 24 | F11: 1 | G11: 40 | H11: 5 | I11: 90 | J11: 2 | K11: 6 | L11: 41 | M11: 41 | N11: 49.7 % | O11: 181 | P11: 10. | U11: 4 | V11: 0 | W11: 4 | X11: 0 | Y11: 11 | AE11: 1
B12: Yhteensä | E12: =SUM(E4:E11) -> 111 | F12: 7 | G12: 147 | H12: 20 | I12: 324 | J12: 13 | K12: 37 | L12: 120 | M12: 154 | N12: =PRODUCT(I12/O12) -> 43.4 % | O12: =SUM(O4:O11) -> 747 | U12: 9 | V12: 0 | W12: 10 | X12: 0 | Y12: 21 | Z12: 0 | AA12: 0 | AB12: 0 | AC12: 0 | AD12: 0 | AE12: 1 | AF12: 0 | AG12: 0 | AH12: 0 | AI12: 0 | AJ12: 0
B13: Pesispörssi | D13: =SUM(F12:H12)+((I12-F12-G12)/3)+(E12/3)+(AE12*25)+(AF12*25)+(AG12*10)+(AH12*25)+(AI12*20)+(AJ12*15) -> 292.7
B15: URA SUPERISSA | E15: OTT | F15: KUN | G15: LÖI | H15: TOI | I15: KL | K15: ka/L | L15: ka/T | M15: ka/KL | N15: K - % | P15: ENSIMMÄISET
B16: Runkosarja | E16: =PRODUCT(E12) -> 111 | F16: =PRODUCT(F12) -> 7 | G16: =PRODUCT(G12) -> 147 | H16: =PRODUCT(H12) -> 20 | I16: =PRODUCT(I12) -> 324 | K16: =PRODUCT((F16+G16)/E16) -> 1.39 | L16: =PRODUCT(H16/E16) -> 0.18 | M16: =PRODUCT(I16/E16) -> 2.92 | N16: =PRODUCT(N12) -> 43.4 % | O16: =PRODUCT(O12) -> 747 | P16: Ottelu | R16: 12.06. 2020 Kirittäret - JoMa 2-0 (3-2, 9-2) | AB16: 1. ottelu | AD16: 19 v 0 kk 27 pv
B17: Ylempi loppusarja | E17: =SUM(U12) -> 9 | F17: =SUM(V12) -> 0 | G17: =SUM(W12) -> 10 | H17: =SUM(X12) -> 0 | I17: =SUM(Y12) -> 21 | K17: =PRODUCT((F17+G17)/E17) -> 1.11 | L17: =PRODUCT(H17/E17) -> 0.00 | M17: =PRODUCT(I17/E17) -> 2.33 | N17: =PRODUCT(I17/O17) -> 38.2 % | O17: 55 | P17: Lyöty | R17: 12.06. 2020 Kirittäret - JoMa 2-0 (3-2, 9-2) | AB17: 1. ottelu | AD17: 19 v 0 kk 27 pv
B18: Alempi loppusarja | P18: Tuotu | R18: 28.06. 2020 JoMa - Kirittäret 0-1 (4-5, 2-2) | AB18: 4. ottelu | AD18: 19 v 1 kk 12 pv
B19: KAIKKI | E19: =SUM(E16:E18) -> 120 | F19: =SUM(F16:F18) -> 7 | G19: =SUM(G16:G18) -> 157 | H19: =SUM(H16:H18) -> 20 | I19: =SUM(I16:I18) -> 345 | K19: =PRODUCT((F19+G19)/E19) -> 1.37 | L19: =PRODUCT(H19/E19) -> 0.17 | M19: =PRODUCT(I19/E19) -> 2.88 | N19: =PRODUCT(I19/O19) -> 43.0 % | O19: =SUM(O16:O18) -> 802 | P19: Kunnari | R19: 28.06. 2020 JoMa - Kirittäret 0-1 (4-5, 2-2) | AB19: 4. ottelu | AD19: 19 v 1 kk 12 pv
B21: Seurat | D21: ViU = Viinijärven Urheilijat (1914), kasvattajaseura
D22: JoMa = Joensuun Maila (1957)

Sheet Arvo-ottelut
B1: ITÄ - LÄNSI - KORTTI
B2: Hanna Toivanen | C2: 16.5.2001 Varkaus
B3: NAISET | C3: Itä - Länsi, tulos | D3: Joukkue | E3: Seura | G3: V | H3: T | I3: H | J3: Up. | K3: Lj. | L3: Palk. | M3: O | N3: K | O3: L | P3: T | Q3: KL | R3: 1 | S3: 2 | T3: 3 | U3: k | V3: KL-% | W3: Pelinjohtaja | X3: Yleisöä
B4: 29.06. 2024 Jyväskylä | C4: 2-1 (5-4, 2-6, 0-0, 2-1) | D4: Itä | E4: JoMa | G4: 1 | K4: jok | M4: 1 | O4: 1 | Q4: 1/7 | T4: 0/3 | U4: 1/4 | V4: 14.3 % | W4: Mattias Kitola | X4: 3293
B5: Yhteensä | G5: 1 | M5: 1 | O5: 1 | Q5: 1/7 | T5: 0/3 | U5: 1/4 | V5: 14.3 %
B6: Ikä ensimmäisessä ottelussa | C6: 23 v 1 kk 13 pv
B8: B-TYTÖT | C8: Itä - Länsi, tulos | D8: Joukkue | E8: Seura | G8: V | H8: T | I8: H | J8: Up. | K8: Lj. | L8: Palk. | M8: O | N8: K | O8: L | P8: T | Q8: KL | R8: 1 | S8: 2 | T8: 3 | U8: k | V8: KL-% | W8: Pelinjohtaja | X8: Yleisöä
B9: 30.06. 2018 Joensuu | C9: 1-2 (2-3, 2-0, 0-1) | D9: Itä | E9: JoMa | I9: 1 | K9: jok | M9: 1 | O9: 1 | Q9: 2/6 | T9: 1/2 | U9: 1/4 | V9: 33.3 % | W9: Erno Tuomainen | X9: 1062
B10: 06.07. 2019 Seinäjoki | C10: 0-1 (4-4, 0-4) | D10: Itä | E10: JoMa | I10: 1 | J10: L | K10: 5 | L10: II p | M10: 1 | P10: 1 | Q10: 1/6 | R10: 1/2 | S10: 0/3 | T10: 0/1 | V10: 16.7 % | W10: Matti Pirinen | X10: 1054
B11: Yhteensä | I11: =SUM(I7:I10) -> 2 | M11: =SUM(M7:M10) -> 2 | O11: 1 | P11: 1 | Q11: 3/12 | R11: 1/2 | S11: 0/3 | T11: 1/3 | U11: 1/4 | V11: 25.0 %
